bitfinex/quotes_ETHUSD_20260214
["timestamp","ask_amount","ask_price","bid_price","bid_amount"]
[1771043199157,0.0011,2058.1,2057.7,4.23291034]
[1771043199567,0.0011,2058.1,2057.8,0.46463965]
[1771043200967,0.0011,2058.5,2057.9,0.46463965]
[1771043201272,0.50069662,2058.5,2057.9,0.46463965]
[1771043201465,0.50069662,2058.5,2058.0,2.146]
[1771043201671,0.50069662,2058.5,2058.0,3.021]
[1771043202686,0.50069662,2058.5,2057.6,0.46463965]
[1771043202985,0.50069662,2058.5,2057.7,3.02]
[1771043203750,0.49959662,2058.3,2057.7,4.23493951]
[1771043203953,0.49959662,2058.3,2057.7,3.02]
[1771043205889,1.21465358,2058.2,2057.7,3.02]
[1771043206121,1.7142502,2058.2,2057.7,3.02]
[1771043207207,0.49959662,2058.1,2057.7,3.02]
[1771043208299,0.49959662,2057.9,2057.6,2.144]
[1771043209089,0.49959662,2057.9,2057.6,1.984]
[1771043210678,0.49959662,2057.9,2057.3,0.001]
[1771043210679,0.49959662,2057.7,2057.3,0.001]
[1771043211002,0.49959662,2057.7,2057.4,2.142]
[1771043211183,0.49959662,2057.7,2057.3,0.001]
[1771043211383,0.49959662,2057.7,2057.3,2.143]
[1771043214108,1.71455483,2057.7,2057.3,2.143]
[1771043214401,1.21493333,2057.8,2057.3,2.143]
[1771043215408,0.49959662,2057.7,2057.3,2.143]
[1771043216984,1.21500777,2057.6,2057.3,2.143]
[1771043218909,1.21499131,2057.7,2057.3,2.143]
[1771043219080,1.71442867,2057.9,2057.3,3.82282373]
[1771043219585,1.21483205,2057.9,2057.4,0.46463965]
[1771043219981,1.21591387,2058.0,2057.4,0.46463965]
[1771043221391,1.21591387,2058.0,2057.4,1.67972849]
[1771043222213,1.21591387,2058.0,2057.5,0.47705564]
[1771043222406,0.0011,2058.0,2057.5,0.47705564]
[1771043223797,0.0011,2058.0,2057.7,0.47705564]
[1771043224001,0.0011,2058.0,2057.6,7.83125257]
[1771043224002,0.0011,2058.0,2057.8,2.61905564]
[1771043225816,0.0011,2058.0,2057.8,3.83393738]
[1771043226013,0.0011,2058.0,2057.8,2.61905564]
[1771043226916,0.0011,2058.0,2057.8,2.142]
[1771043227918,0.47049832,2058.0,2057.7,2.145]
[1771043228300,0.47049832,2058.0,2057.5,2.145]
[1771043229007,0.46939832,2057.9,2057.5,2.145]
[1771043229205,0.46939832,2057.9,2057.2,0.875]
[1771043230221,0.46939832,2057.7,2057.2,0.875]
[1771043231198,0.46939832,2057.7,2057.1,2.144]
[1771043231418,0.46939832,2057.7,2057.1,2.145]
[1771043231803,0.46939832,2057.7,2057.1,0.001]
[1771043232403,0.46939832,2057.5,2057.1,0.001]
[1771043235226,1.6845242,2057.4,2057.1,0.001]
[1771043237405,7.59505377,2057.6,2057.1,0.001]
[1771043237615,8.06445209,2057.6,2057.1,0.001]
[1771043240413,0.46939832,2057.5,2057.1,0.001]
[1771043242014,1.68452384,2057.5,2057.1,0.001]
[1771043247117,1.21512552,2057.5,2057.1,0.001]
[1771043248913,8.06445274,2057.6,2057.1,0.001]
[1771043251435,8.06445274,2057.6,2057.0,0.001]
[1771043252418,0.46240705,2057.5,2057.0,0.001]
[1771043253948,1.67753293,2057.4,2057.0,0.001]
[1771043254642,1.67753293,2057.4,2056.9,0.001]
[1771043256241,0.46240705,2057.3,2056.7,2.143]
[1771043256841,0.46240705,2057.3,2056.7,2.144]
[1771043259035,1.71053655,2057.2,2056.7,2.144]
[1771043259559,1.21524402,2057.2,2056.7,3.8345894]
[1771043259862,1.21516609,2057.4,2056.8,0.47507075]
[1771043262274,1.71035935,2057.5,2056.9,1.21542126]
[1771043263975,1.21506682,2057.5,2057.0,0.47507075]
[1771043264880,1.21506682,2057.5,2057.0,1.69042135]
[1771043265970,8.09032183,2057.6,2057.0,1.69042135]
[1771043266477,1.71032183,2057.6,2057.0,1.69042135]
[1771043266683,1.71032183,2057.6,2057.0,8.31441488]
[1771043266858,0.49529253,2057.6,2057.0,8.31441488]
[1771043267058,1.71030176,2057.6,2057.0,8.31441488]
[1771043270475,1.71030176,2057.6,2057.0,1.69042135]
[1771043275567,1.7103017,2057.6,2057.0,1.69042135]
[1771043278089,1.71030628,2057.6,2057.0,1.69042135]
[1771043281190,0.49529253,2057.6,2057.0,1.69042135]
[1771043282692,1.93267398,2057.8,2057.1,0.45589435]
[1771043282994,1.93267398,2057.8,2057.2,2.58189435]
[1771043286502,1.93267398,2057.8,2057.2,3.79712356]
[1771043287294,1.93267398,2057.8,2057.2,2.58189435]
[1771043287497,1.93267398,2057.8,2057.2,2.126]
[1771043287498,0.46395025,2057.7,2057.2,2.126]
[1771043287670,0.46395025,2057.7,2057.2,2.125]
[1771043288679,0.46395025,2057.6,2057.2,3.3402371]
[1771043289777,0.46395025,2057.6,2057.2,2.125]
[1771043292011,1.67896142,2057.6,2057.2,2.125]
[1771043293509,0.46395025,2057.6,2057.2,3.34022973]
[1771043293809,1.932684,2057.8,2057.2,3.34022973]
[1771043294198,1.46873375,2057.8,2057.2,3.34022973]
[1771043294395,0.253803,2057.8,2057.2,3.79612408]
[1771043294606,1.93264613,2057.8,2057.2,3.79612408]
[1771043294984,1.67994313,2057.8,2057.2,3.79612408]
[1771043303116,1.67994313,2057.8,2057.2,2.125]
[1771043303316,0.46395025,2057.7,2057.2,2.125]
[1771043303529,0.46395025,2057.7,2057.2,3.34024139]
[1771043306538,1.6789409,2057.7,2057.2,3.34024139]
[1771043309959,0.46395025,2057.6,2057.2,2.125]
[1771043311356,0.47957514,2057.5,2057.2,2.125]
[1771043315341,1.69464894,2057.5,2057.2,2.125]
[1771043315546,0.47957514,2057.4,2057.2,2.125]
[1771043316652,0.47957514,2057.4,2056.8,2.129]
[1771043316653,0.47957514,2057.3,2056.8,2.129]
[1771043316844,1.69471579,2057.4,2056.8,2.58282668]
[1771043317058,0.47957514,2057.4,2056.8,2.58282668]
[1771043318857,1.69470268,2057.4,2056.9,1.21542126]
[1771043320341,1.66794505,2057.6,2056.9,8.3119337]
[1771043320539,1.21609241,2057.7,2057.0,0.47507075]
[1771043320939,0.45399283,2057.7,2057.1,1.21530309]
[1771043323369,1.6679006,2057.6,2057.0,1.21536217]
[1771043325538,1.6679006,2057.6,2057.0,1.21436217]
[1771043328966,1.6679006,2057.6,2057.0,1.21336217]
[1771043331352,0.45289283,2057.5,2057.0,1.21336217]
[1771043335271,0.45289283,2057.4,2056.9,1.21537381]
[1771043341480,1.66801881,2057.4,2056.9,1.21537381]
[1771043341683,0.49486065,2057.3,2056.9,1.21537381]
[1771043341854,1.70997531,2057.5,2056.9,1.21537381]
[1771043342256,1.21505311,2057.6,2056.9,1.67870573]
[1771043342480,1.96078559,2057.7,2056.9,1.67870573]
[1771043342994,0.49486065,2057.6,2056.9,1.67870573]
[1771043345160,1.70987055,2057.6,2056.9,1.67870573]
[1771043345979,0.49486065,2057.6,2056.9,1.67870573]
[1771043346180,0.49486065,2057.6,2057.0,0.46333192]
[1771043346482,1.70987206,2057.6,2057.0,0.46333192]
[1771043346655,1.70987206,2057.6,2056.9,1.21537381]
[1771043346860,0.49486065,2057.5,2056.9,1.21537381]
[1771043349088,1.96077011,2057.7,2056.9,1.67870573]
[1771043349292,0.74578953,2057.7,2057.0,0.46333192]
[1771043349790,1.71091124,2057.7,2057.0,0.46333192]
[1771043350485,1.21605059,2057.7,2057.0,0.46333192]
[1771043350789,0.49486065,2057.6,2057.1,1.21530309]
[1771043355900,0.49486065,2057.6,2057.2,2.145]
[1771043358304,0.49486065,2057.6,2057.2,3.36019839]
[1771043359200,0.49596065,2057.7,2057.2,3.36019839]
[1771043359376,0.0011,2057.7,2057.2,3.82353031]
[1771043368517,0.49596065,2057.7,2057.2,3.36019839]
[1771043369220,0.49596065,2057.7,2057.2,2.145]
[1771043370010,0.49596065,2057.7,2057.2,3.36023468]
[1771043372502,0.4991256,2057.6,2057.2,3.36023468]
[1771043398224,0.0011,2057.7,2057.3,0.45899645]
[1771043398432,0.0011,2057.7,2057.3,0.45799645]
[1771043398654,0.0011,2057.7,2057.2,9.98047247]
[1771043398962,0.0011,2057.7,2057.2,3.36023468]
[1771043399159,0.45940106,2057.7,2057.2,3.36023468]
[1771043399357,0.0011,2057.7,2057.3,0.45899645]
[1771043400761,0.0011,2057.7,2057.2,9.98047247]
[1771043401251,0.0011,2057.7,2057.2,10.45454322]
[1771043401572,0.0011,2057.7,2057.2,10.45354322]
[1771043402633,0.45940106,2057.9,2057.5,0.47407075]
[1771043402634,0.0011,2057.9,2057.5,0.47407075]
[1771043402861,0.0011,2057.9,2057.7,1.21494872]
[1771043403870,0.0011,2058.1,2057.8,0.47407075]
[1771043404183,0.0011,2058.5,2057.9,0.47407075]
[1771043404345,0.0011,2058.5,2058.0,2.176]
[1771043404870,0.0011,2058.5,2058.1,1.21471259]
[1771043405060,0.49307589,2058.5,2058.1,1.21471259]
[1771043405376,0.49307589,2058.5,2058.0,2.176]
[1771043405377,0.49307589,2058.4,2058.0,2.176]
[1771043407078,0.49197589,2058.3,2058.0,2.176]
[1771043408291,0.0011,2058.4,2058.0,2.176]
[1771043408489,0.49307589,2058.4,2058.0,2.176]
[1771043409151,0.49307589,2058.4,2058.0,3.39077135]
[1771043409563,0.0011,2058.4,2058.0,3.39077135]
[1771043411289,0.49307589,2058.4,2058.0,3.39077135]
[1771043415070,1.70761381,2058.4,2058.0,2.176]
[1771043418191,0.49197589,2058.3,2058.0,2.176]
[1771043418794,0.49197589,2058.3,2057.7,2.187]
[1771043420215,0.49197589,2058.1,2057.7,2.187]
[1771043421708,0.49197589,2058.1,2057.5,0.001]
[1771043421709,0.49197589,2058.0,2057.5,0.001]
[1771043421905,0.49197589,2058.0,2057.1,1.21630067]
[1771043422206,4.85971432,2058.4,2057.2,0.47507075]
[1771043422207,0.49197589,2057.8,2057.2,0.47507075]
[1771043422367,0.49197589,2058.1,2057.3,0.47407075]
[1771043422993,0.49197589,2058.1,2057.4,2.184]
[1771043424504,0.49197589,2058.0,2057.5,0.001]
[1771043425508,0.49197589,2058.0,2057.4,3.39907912]
[1771043425706,0.49197589,2058.0,2057.5,0.001]
[1771043426869,1.70665598,2058.2,2057.5,0.47507075]
[1771043429112,1.70665598,2058.2,2057.6,1.21500777]
[1771043429317,0.49197589,2058.1,2057.6,1.21500777]
[1771043429477,0.49197589,2058.1,2057.7,0.001]
[1771043431610,1.70669873,2058.1,2057.7,0.001]
[1771043431918,1.70669873,2058.1,2057.5,1.21506682]
[1771043432117,0.49197589,2058.1,2057.6,0.001]
[1771043434716,0.45035357,2058.3,2057.6,0.47507075]
[1771043434890,1.66601529,2058.4,2057.7,0.47407075]
[1771043436603,1.66601529,2058.4,2057.8,1.21488968]
[1771043437932,0.45035357,2058.3,2057.7,1.21490235]
[1771043438134,0.45035357,2058.3,2057.8,0.001]
[1771043438523,1.66500694,2058.3,2057.8,0.001]
[1771043438832,0.46652076,2058.2,2057.8,0.001]
[1771043440928,1.68118629,2058.2,2057.8,0.001]
[1771043441837,1.68118127,2058.2,2057.8,0.001]
[1771043445253,0.46652076,2058.1,2057.8,0.001]
[1771043445759,0.46652076,2058.0,2057.8,0.001]
[1771043447378,0.46652076,2058.0,2057.6,1.21500777]
[1771043447552,0.46652076,2058.0,2057.7,0.001]
[1771043448982,0.46652076,2058.0,2057.5,4.86018164]
[1771043449258,0.46652076,2058.0,2057.6,0.001]
[1771043453661,1.68130169,2058.0,2057.6,0.001]
[1771043453867,0.46652076,2057.9,2057.6,0.001]
[1771043455567,0.46652076,2057.9,2057.4,3.3990825]
[1771043455750,0.46652076,2057.9,2057.6,0.001]
[1771043462674,0.46652076,2057.9,2057.4,1.2150825]
[1771043462977,0.46652076,2057.9,2057.0,1.21635964]
[1771043462978,1e-08,2057.2,2057.0,1.21635964]
[1771043463178,0.49753056,2057.6,2057.0,1.21635964]
[1771043463751,3.41036878,2057.5,2057.0,1.21635964]
[1771043463975,3.41036878,2057.4,2057.0,1.21635964]
[1771043464152,2.91283822,2057.3,2057.0,1.21635964]
[1771043464553,0.49753056,2057.8,2057.0,1.21635964]
[1771043464855,1.21483085,2057.9,2057.0,1.67291916]
[1771043464856,3.40833046,2057.7,2057.0,1.67291916]
[1771043465077,4.62337441,2057.6,2057.0,1.67291916]
[1771043465379,2.9107999,2057.5,2057.0,1.67291916]
[1771043465580,2.9107999,2057.4,2057.0,3.86491916]
[1771043465775,1.71257451,2057.6,2057.0,3.86491916]
[1771043465983,2.9093975,2057.5,2057.0,3.86491916]
[1771043466153,1.71257451,2057.6,2057.0,3.86491916]
[1771043466354,2.90848158,2057.5,2057.0,3.86491916]
[1771043466581,1.71257451,2057.6,2057.0,3.40835964]
[1771043466784,3.40591229,2057.5,2057.0,3.40835964]
[1771043466972,0.49753056,2057.5,2057.0,3.40835964]
[1771043467280,0.49753056,2057.5,2057.0,2.193]
[1771043467482,0.49753056,2057.3,2057.0,2.193]
[1771043469284,1.21519114,2057.3,2057.0,2.193]
[1771043469490,0.49753056,2057.2,2057.0,2.193]
[1771043471369,0.49753056,2057.1,2057.0,2.192]
[1771043472266,0.49753056,2057.1,2056.8,0.001]
[1771043473485,0.49753056,2057.3,2056.8,0.001]
[1771043474596,0.49753056,2057.3,2056.7,1.21650301]
[1771043475610,0.49753056,2057.2,2056.7,1.21650301]
[1771043492327,2.91687945,2057.1,2056.7,1.6742657]
[1771043492526,1.21522191,2057.3,2056.7,1.6742657]
[1771043492731,2.91690718,2057.2,2056.7,1.6742657]
[1771043492928,2.91690718,2057.1,2056.7,1.21650301]
[1771043493104,0.48743667,2057.2,2056.7,1.21650301]
[1771043493303,2.91699888,2057.1,2056.7,1.21650301]
[1771043493503,2.91699888,2057.0,2056.7,1.21650301]
[1771043493720,0.48743667,2057.2,2056.7,1.21650301]
[1771043493923,2.91704052,2057.1,2056.7,1.21650301]
[1771043494096,2.91704052,2057.0,2056.7,1.21650301]
[1771043494300,0.48743667,2057.2,2056.7,1.21650301]
[1771043494614,2.91705136,2057.1,2056.7,1.21650301]
[1771043494924,1.21522191,2057.3,2056.7,1.21650301]
[1771043494925,0.0011,2057.5,2056.9,0.45776269]
[1771043495102,0.0011,2057.5,2057.0,2.198]
[1771043496801,0.0011,2057.5,2057.2,0.45776269]
[1771043497712,0.0011,2057.6,2057.3,0.45776269]
[1771043497919,0.0011,2057.6,2057.4,2.65876269]
[1771043498611,0.0011,2057.8,2057.4,2.65876269]
[1771043500135,0.0011,2057.8,2057.5,1.21506682]
[1771043509156,0.0011,2057.8,2057.4,3.41608157]
[1771043509325,0.49661541,2057.8,2057.4,3.41608157]
[1771043511027,0.49661541,2057.8,2057.4,2.201]
[1771043511263,0.49661541,2057.8,2057.4,3.41612275]
[1771043517962,0.0011,2057.8,2057.4,3.87024934]
[1771043519155,0.0011,2057.8,2057.4,3.41612275]
[1771043520066,0.0011,2058.1,2057.5,7.07165025]
[1771043520295,0.49661541,2058.1,2057.5,7.07165025]
[1771043521776,0.49661541,2058.1,2057.6,1.21500777]
[1771043526959,0.49661541,2058.1,2057.7,2.229]
[1771043528170,0.49661541,2058.1,2057.8,1.21488968]
[1771043534101,0.0011,2058.1,2057.8,1.21488968]
[1771043534400,0.0011,2058.3,2057.8,1.21488968]
[1771043534695,0.0011,2058.3,2057.8,1.71272997]
[1771043537892,0.0011,2058.3,2057.9,0.49784029]
[1771043538594,0.48736724,2058.0,2057.2,1.21524402]
[1771043538793,0.48736724,2057.9,2057.2,1.71308431]
[1771043539302,0.48736724,2057.9,2057.3,0.49784029]
[1771043539692,0.48736724,2057.9,2057.4,0.001]
[1771043541803,0.48736724,2058.1,2057.4,1.71396617]
[1771043541990,0.48736724,2058.1,2057.5,0.49784029]
[1771043543771,1.70310684,2058.3,2057.6,1.21500777]
[1771043544169,1.70310684,2058.3,2057.6,1.71284806]
[1771043544401,0.48846724,2058.3,2057.6,1.71284806]
[1771043544606,0.48846724,2058.3,2057.6,1.71184806]
[1771043545907,1.70307271,2058.3,2057.6,1.71184806]
[1771043546703,0.48736724,2058.2,2057.6,1.21400777]
[1771043548377,1.70203215,2058.2,2057.5,4.8600311]
[1771043548583,0.48736724,2058.1,2057.5,4.8600311]
[1771043556213,0.47530118,2058.0,2057.5,1.21506682]
[1771043559212,1.21470141,2058.2,2057.5,1.21506682]
[1771043559411,1.68573196,2058.2,2057.5,1.21506682]
[1771043559716,0.47103055,2058.1,2057.5,1.21506682]
[1771043561517,1.68578625,2058.1,2057.5,1.21506682]
[1771043563109,0.47103055,2058.1,2057.5,1.21506682]
[1771043564009,1.68574519,2058.1,2057.5,1.21506682]
[1771043565326,0.47103055,2058.1,2057.5,1.21506682]
[1771043566926,0.47103055,2058.1,2057.5,0.49855948]
[1771043569098,0.47103055,2058.1,2057.6,1.21500777]
[1771043578640,1.6857579,2058.1,2057.6,1.21500777]
[1771043578960,0.47103055,2058.0,2057.6,1.21500777]
[1771043580376,0.47103055,2058.0,2057.5,1.21502049]
[1771043580663,1.21472735,2058.1,2057.5,1.21502049]
[1771043580963,1.6857579,2058.1,2057.5,1.21502049]
[1771043582059,0.47593309,2058.0,2057.5,1.21502049]
[1771043582642,1.69074506,2058.0,2057.5,1.21502049]
[1771043582844,1.69074506,2058.0,2057.4,3.46808151]
[1771043582845,0.47593309,2057.9,2057.4,3.46808151]
[1771043587950,1.21473636,2058.1,2057.4,3.46808151]
[1771043588147,0.47703309,2058.3,2057.6,0.49060612]
[1771043590174,0.47703309,2058.3,2057.7,1.70555484]
[1771043590478,0.0011,2058.3,2057.8,0.49060612]
[1771043590877,0.0011,2058.3,2057.9,7.10873636]
[1771043591273,0.0011,2058.3,2057.7,8.32368508]
[1771043592491,0.0011,2058.3,2057.8,2.254]
[1771043594765,0.0011,2058.3,2057.9,1.21483065]
[1771043600779,0.0011,2058.3,2057.9,1.70543677]
[1771043601879,0.0011,2058.3,2058.0,0.49060612]
[1771043602402,0.0011,2058.3,2057.9,1.21483065]
[1771043605577,0.0011,2058.3,2057.9,7.83296089]
[1771043610210,0.0011,2058.3,2057.9,8.32356701]
[1771043611814,0.0011,2058.3,2058.0,0.49643138]
[1771043612013,0.0011,2058.3,2058.1,2.285]
[1771043612193,0.0011,2058.3,2058.1,3.49970103]
[1771043613812,0.0011,2058.3,2058.1,2.285]
[1771043615413,0.0011,2058.3,2058.1,3.49970805]
[1771043616394,0.0011,2058.3,2058.1,2.285]
[1771043616996,0.0011,2058.3,2058.1,3.49971051]
[1771043617200,0.48833132,2058.3,2057.8,2.291]
[1771043617514,0.48833132,2058.3,2057.8,3.50584522]
[1771043618126,0.48833132,2058.3,2057.8,3.50484522]
[1771043621821,0.48833132,2058.3,2057.8,3.50384522]
[1771043622727,0.46711596,2058.2,2057.8,2.289]
[1771043623600,0.46711596,2058.2,2057.6,1.2149856]
[1771043623925,0.46711596,2058.0,2057.4,2.293]
[1771043625602,1.21471259,2058.1,2057.4,2.75158965]
[1771043625923,0.46711596,2057.8,2057.4,2.293]
[1771043626425,0.46711596,2057.8,2057.4,0.001]
[1771043626850,0.46711596,2057.8,2057.3,0.001]
[1771043627733,0.46711596,2057.7,2057.3,0.001]
[1771043627958,0.46711596,2057.5,2057.3,0.001]
[1771043628247,0.46711596,2057.5,2057.1,0.001]
[1771043629966,0.46711596,2057.3,2057.1,0.001]
[1771043631048,1.21512588,2057.4,2057.1,0.001]
[1771043638086,1.68224184,2057.4,2057.1,0.001]
[1771043642393,1.21511312,2057.5,2057.1,0.001]
[1771043644393,1.67947987,2057.5,2057.1,0.001]
[1771043648799,4.86012718,2057.6,2057.1,0.48111826]
[1771043648800,1.21505106,2057.6,2057.1,0.48111826]
[1771043649164,1.68046354,2057.7,2057.1,0.48111826]
[1771043651402,1.21609679,2057.7,2057.2,1.69536228]
[1771043651785,0.0011,2057.7,2057.2,1.69536228]
[1771043652701,0.0011,2057.7,2057.3,0.48011826]
[1771043653605,0.0011,2057.7,2057.5,0.48011826]
[1771043655519,0.0011,2057.7,2057.5,1.69517478]
[1771043655800,0.0011,2057.7,2057.5,0.48011826]
[1771043655998,0.0011,2057.7,2057.5,1.69518138]
[1771043656203,0.0011,2057.7,2057.4,1.21508759]
[1771043656403,0.0011,2057.7,2057.3,0.48011826]
[1771043656818,0.0011,2057.7,2057.2,3.49020525]
[1771043656819,0.46546675,2057.7,2057.2,2.275]
[1771043658130,1.67937452,2057.6,2057.2,2.275]
[1771043658715,0.46436675,2057.5,2057.2,2.275]
[1771043659217,0.46436675,2057.5,2057.1,0.001]
[1771043661427,1.21512588,2057.4,2057.1,0.001]
[1771043670722,1.21608809,2057.7,2057.1,0.48111826]
[1771043670925,0.0011,2057.7,2057.1,0.48111826]
[1771043671094,0.25350287,2057.7,2057.1,0.48111826]
[1771043671295,0.0011,2057.7,2057.1,0.48111826]
[1771043671832,0.0011,2057.7,2057.2,6.61908107]
[1771043672007,0.0011,2057.7,2057.3,0.46829396]
[1771043672325,0.0011,2057.7,2057.4,1.68341984]
[1771043675226,0.0011,2057.7,2057.4,0.46829396]
[1771043675424,0.0011,2057.7,2057.1,0.001]
[1771043675602,0.0011,2057.7,2057.2,2.275]
[1771043677730,0.0011,2057.7,2057.3,1.68347891]
[1771043677919,0.0011,2057.7,2057.4,0.46829396]
[1771043682733,0.47119461,2057.7,2057.1,0.001]
[1771043685038,1.68510238,2057.6,2057.1,0.001]
[1771043686250,0.47009461,2057.5,2057.1,0.001]
[1771043687150,1.21512588,2057.4,2057.1,0.001]
[1771043687824,1.68519779,2057.5,2057.1,0.001]
[1771043691150,1.68519779,2057.5,2056.9,0.001]
[1771043691151,0.47009461,2057.4,2056.9,0.001]
[1771043691526,0.47009461,2057.4,2056.8,0.001]
[1771043692552,0.47009461,2057.2,2056.8,0.001]
[1771043693445,0.47009461,2057.0,2056.8,0.001]
[1771043694248,0.47009461,2057.0,2056.6,0.001]
[1771043694424,1.68551587,2056.9,2056.5,0.001]
[1771043699653,0.47009461,2056.8,2056.5,0.001]
[1771043699843,1.21536217,2057.0,2056.5,0.49164745]
[1771043704379,1.21536217,2057.0,2056.5,0.001]
[1771043704929,1.71199623,2057.0,2056.5,0.001]
[1771043717167,1.21536217,2057.0,2056.5,0.49553308]
[1771043721963,0.49663406,2056.9,2056.5,0.001]
[1771043725156,1.21548035,2056.8,2056.5,0.001]
[1771043726906,1.7120962,2056.9,2056.5,0.001]
[1771043727091,1.21546214,2056.9,2056.5,0.001]
[1771043731492,4.86152582,2057.0,2056.5,0.001]
[1771043738101,5.33870231,2057.0,2056.5,0.001]
[1771043740203,4.86152582,2057.0,2056.5,0.47834258]
[1771043740705,4.86152582,2057.0,2056.5,0.001]
[1771043740880,5.31342679,2057.0,2056.5,0.001]
[1771043742101,4.86152582,2057.0,2056.5,0.47834258]
[1771043742304,1.21536217,2057.0,2056.5,0.47834258]
[1771043757518,1.66726314,2057.0,2056.5,0.001]
[1771043764616,1.66726314,2057.0,2056.4,0.47834258]
[1771043768423,1.66726314,2057.0,2056.4,0.47734258]
[1771043773137,0.46683123,2056.7,2056.3,0.001]
[1771043773614,0.46683123,2056.5,2056.2,0.001]
[1771043774034,1.21571678,2056.4,2056.2,0.001]
[1771043778332,0.46683123,2056.3,2056.0,0.001]
[1771043778530,0.46683123,2056.2,2055.6,0.001]
[1771043779331,0.46683123,2056.0,2055.6,0.001]
[1771043779637,2.70383123,2056.0,2055.6,0.001]
[1771043779813,0.46683123,2055.9,2055.6,0.001]
[1771043780917,1.2160716,2055.8,2055.6,0.001]
[1771043784010,1.68290283,2055.8,2055.5,0.001]
[1771043784938,0.46683123,2055.7,2055.5,0.001]
[1771043785114,0.46683123,2055.7,2055.1,0.4897999]
[1771043785712,0.46683123,2055.7,2055.3,0.001]
[1771043786134,1.21618992,2055.6,2055.3,0.001]
[1771043787835,2.246,2055.8,2055.3,0.4907999]
[1771043789245,2.246,2055.8,2055.4,0.4897999]
[1771043789438,3.4620721,2055.8,2055.4,0.4897999]
[1771043789834,2.246,2055.8,2055.4,0.4897999]
[1771043790036,3.46208034,2055.8,2055.4,0.4897999]
[1771043793453,2.246,2055.8,2055.4,0.4897999]
[1771043793850,3.46207664,2055.8,2055.4,0.4897999]
[1771043794523,3.94814775,2055.8,2055.3,0.001]
[1771043797350,0.48607111,2055.7,2055.3,0.001]
[1771043798363,6.62548274,2055.7,2055.3,0.001]
[1771043798564,1.70232019,2055.5,2055.1,0.001]
[1771043798945,1.21624908,2055.5,2055.1,0.001]
[1771043799855,1.21624908,2055.5,2054.9,0.001]
[1771043799856,0.49685873,2055.4,2054.9,0.001]
[1771043801072,1.71307728,2055.6,2054.9,0.48463362]
[1771043801249,1.21617074,2055.7,2054.9,0.48463362]
[1771043801571,1.21601245,2055.9,2055.0,0.48363362]
[1771043801865,2.255,2055.8,2055.0,0.48363362]
[1771043803142,3.47107355,2055.8,2055.1,1.21648581]
[1771043803342,3.47107355,2055.8,2055.2,0.48363362]
[1771043803762,1.21605867,2055.9,2055.2,0.48363362]
[1771043805867,0.49685873,2055.9,2055.3,1.21636744]
[1771043806984,0.49685873,2055.9,2055.3,1.70000106]
[1771043808847,1.2160716,2055.8,2055.3,1.70000106]
[1771043809751,1.71291699,2055.9,2055.3,1.70000106]
[1771043810055,1.21599493,2056.0,2055.4,0.48363362]
[1771043810457,1.71285366,2056.0,2055.4,0.48363362]
[1771043812182,1.71285366,2056.0,2055.4,1.6999215]
[1771043813455,1.21599493,2056.0,2055.4,1.21628788]
[1771043813655,1.21599493,2056.0,2055.5,0.48363362]
[1771043814171,1.21599493,2056.0,2055.4,1.21628788]
[1771043814686,1.71285366,2056.0,2055.4,1.21628788]
[1771043818487,1.71285366,2056.0,2055.4,0.48363362]
[1771043818956,1.21697202,2056.2,2055.4,0.48363362]
[1771043819588,1.71383075,2056.2,2055.4,0.48363362]
[1771043820670,1.71383075,2056.2,2055.5,1.6998827]
[1771043823197,1.71383075,2056.2,2055.5,1.21624908]
[1771043823501,1.21693519,2056.2,2055.6,0.45170558]
[1771043823681,0.0011,2056.2,2055.6,0.45170558]
[1771043823984,1.21693989,2056.2,2055.6,0.45170558]
[1771043824184,0.0011,2056.2,2055.6,0.45170558]
[1771043825161,0.0011,2056.2,2055.7,1.21613075]
[1771043825368,0.0011,2056.2,2055.7,1.66783633]
[1771043833198,0.0011,2056.2,2055.7,0.45170558]
[1771043836282,0.48529041,2056.2,2055.6,1.21614404]
[1771043837102,1.70117768,2056.2,2055.6,0.45170558]
[1771043839201,0.0011,2056.2,2055.7,0.45070558]
[1771043841576,0.0011,2056.2,2055.7,1.66678251]
[1771043843208,0.0011,2056.2,2055.7,1.66578251]
[1771043844107,0.0011,2056.2,2055.8,0.45170558]
[1771043846106,0.0011,2056.2,2055.9,1.21601245]
[1771043848806,0.0011,2056.2,2055.8,1.66773208]
[1771043852283,0.0011,2056.2,2055.7,4.86430625]
[1771043853695,0.0011,2056.2,2055.8,0.45812012]
[1771043854287,0.0011,2056.2,2055.7,4.86430625]
[1771043854488,0.0011,2056.2,2055.7,5.32242637]
[1771043856817,0.4603118,2056.2,2055.6,2.199]
[1771043857496,0.4603118,2056.2,2055.6,2.65712012]
[1771043861832,1.6761612,2056.2,2055.7,1.21613075]
[1771043885669,0.4603118,2056.2,2055.7,1.21613075]
[1771043885959,0.0011,2056.3,2055.8,0.49612672]
[1771043887145,0.0011,2056.3,2056.0,0.49612672]
[1771043887453,0.0011,2056.3,2056.1,0.49612672]
[1771043890353,0.0011,2056.3,2056.2,1.21583503]
[1771043894350,0.0011,2056.5,2056.3,0.49612672]
[1771043894657,0.0011,2056.5,2056.4,1.21571678]
[1771043895027,0.0011,2056.5,2056.4,3.42771678]
[1771043895548,0.0011,2056.5,2056.4,3.9238435]
[1771043901148,0.0011,2056.7,2056.4,3.9238435]
[1771043901462,0.0011,2056.9,2056.5,0.49612672]
[1771043901959,0.0011,2057.1,2056.5,0.49612672]
[1771043901960,0.0011,2057.1,2056.5,6.63071995]
[1771043902134,0.0011,2057.1,2056.6,0.49612672]
[1771043902752,0.0011,2057.1,2056.7,1.21553945]
[1771043903470,0.0011,2057.1,2056.7,3.43953945]
[1771043905352,0.46197216,2057.1,2056.7,2.224]
[1771043908446,1.67727554,2057.1,2056.7,2.224]
[1771043910663,0.46197216,2057.1,2056.7,3.43953395]
[1771043913184,0.46197216,2057.1,2056.7,3.43853395]
[1771043916287,0.46197216,2057.1,2056.7,3.43753395]
[1771043920203,0.46197216,2057.1,2056.7,2.222]
[1771043922312,0.0011,2057.1,2056.8,0.47703159]
[1771043922475,0.0011,2057.1,2056.7,10.06825086]
[1771043922802,0.0011,2057.1,2056.7,3.43753091]
[1771043934217,0.4682005,2057.1,2056.7,2.222]
[1771043934423,0.4682005,2057.1,2056.7,3.43753043]
[1771043934721,0.0011,2057.1,2056.7,3.43753043]
[1771043935426,0.4682005,2057.1,2056.7,2.222]